Cogmind - Beta 10.2 *** ADVENTURER MODE // 2022.02.20 @ 23:51:58 // AFD2020/Player2 Player: woegarden Result: Destroyed by G-50 Soldier with Heavy Laser Performance ------------- Evolutions (5) 2500 Regions Visited (10) 2000 Robots Destroyed (63) 315 Value Destroyed (2094) 2094 Prototype IDs (9) 180 Alien Tech Used (0) 0 Bonus (2320) 2320 TOTAL SCORE: 9409 Bonus ------- High Alert Combat Kills 35 Follower Combat Kills 2430 Friendly Fire -145 Cogmind --------- Core Integrity 0/1000 Matter 300/300 Energy 100/100 System Corruption 2% Temperature Cool (9) Movement Core (550) Ox10 Location -5/Factory Parts ------- > --- POWER (2) -------- (None) > --- PROPULSION (4) --- Improved Gyrokinetic Inverter Improved Gyrokinetic Inverter Improved Gyrokinetic Inverter > --- UTILITY (7) ------ High-capacity Storage Unit Makeshift Hacking Suite > --- WEAPON (4) ------- (None) > --- INVENTORY (12) --- Cooled Aerolev Unit Cooled Aerolev Unit Improved Gyrokinetic Inverter Improved Gyrokinetic Inverter Advanced Heat Sink Relay Coupler [Demolisher] (22) Relay Coupler [Hunter] (17) System Guard Variable Charge Gun Tri-rail Accelerator Peak State ------------ > --- POWER ------------ Light Angular Momentum Engine Light Angular Momentum Engine > --- PROPULSION ------- Improved Gyrokinetic Inverter Improved Gyrokinetic Inverter Improved Gyrokinetic Inverter Improved Gyrokinetic Inverter > --- UTILITY ---------- Advanced Heat Sink Coolant Injector High-capacity Storage Unit Advanced Weight Redist. System Weapon Cycler > --- WEAPON ----------- Ion Burst Cannon Improved Light Cannon Guided EMP Blaster > --- INVENTORY -------- Light Deuterium Engine Light Deuterium Engine Light Deuterium Engine Light Nuclear Core Improved Gyrokinetic Inverter Improved Gyrokinetic Inverter High-capacity Storage Unit Relay Coupler [Demolisher] Relay Coupler [Hunter] System Guard Heavy Laser Ion Burst Cannon [Rating: 80] Favorites ----------- Power Light Deuterium Engine Engine Light Deuterium Engine Power Core Light Nuclear Core Propulsion Light Treads Treads Light Treads Leg Aluminum Leg Hover Unit Improved Gyrokinetic Inverter Flight Unit Xenon Bombardment Thruster Utility High-capacity Storage Unit Device Advanced Weight Redist. System Storage High-capacity Storage Unit Processor Improved Targeting Computer Hackware Makeshift Hacking Suite Protection Core Shielding Weapon Improved Light Cannon Energy Gun Improved Medium Laser Energy Cannon Ion Burst Cannon Ballistic Gun Heavy Assault Rifle Ballistic Cannon Improved Light Cannon Launcher Guided EMP Blaster Impact Weapon Hammer Special Melee Weapon Dirty Datajack Build | -11 -10 -9 -8 -7 -7 -7 -6 -6 -6 -5 ------- Run | Scr Mat Mat Mat Fac Low Low Fac Low Low Fac Slots Evolved 10 | . . 2 2 2 . . 2 . . 2 Power 1 | . . 1 . . . . . . . . Propulsion 2 | . . . 1 1 . . . . . . Utility 5 | . . 1 . 1 . . 1 . . 2 Weapon 2 | . . . 1 . . . 1 . . . Parts Attached 102 | 6 2 12 25 16 5 . 16 7 4 9 Power 25 | 1 1 2 5 6 . . 4 2 1 3 Engine 21 | 1 1 2 4 4 . . 4 2 1 2 Core 4 | . . . 1 2 . . . . . 1 Reactor . | . . . . . . . . . . . Propulsion 30 | 2 . 2 12 6 4 . 4 . . . Treads 16 | . . . 7 5 4 . . . . . Leg 9 | 2 . 2 5 . . . . . . . Wheel . | . . . . . . . . . . . Hover 4 | . . . . . . . 4 . . . Flight 1 | . . . . 1 . . . . . . Utility 19 | 1 1 3 3 4 . . 3 1 . 3 Device 9 | . . 1 1 2 . . 3 1 . 1 Storage 4 | 1 1 . . 1 . . . . . 1 Processor 1 | . . 1 . . . . . . . . Hackware 2 | . . . 1 . . . . . . 1 Protection 3 | . . 1 1 1 . . . . . . Artifact . | . . . . . . . . . . . Weapon 28 | 2 . 5 5 . 1 . 5 4 3 3 Energy Gun 5 | . . 2 1 . . . 1 1 . . Energy Cannon 3 | . . . . . 1 . 1 1 . . Ballistic Gun 9 | 2 . . 3 . . . . 2 1 1 Ballistic Cannon 6 | . . 3 1 . . . 1 . . 1 Launcher 2 | . . . . . . . 2 . . . Special Weapon . | . . . . . . . . . . . Impact Weapon 1 | . . . . . . . . . . 1 Slashing Weapon . | . . . . . . . . . . . Piercing Weapon . | . . . . . . . . . . . Special Melee Weapon 2 | . . . . . . . . . 2 . Unidentified Prototypes 9 | . . 4 1 1 . . 2 . . 1 Parts Lost 25 | . 1 1 1 1 . . 3 2 4 12 Power 7 | . 1 . . 1 . . . . 1 4 Propulsion 2 | . . . . . . . 1 . . 1 Utility 8 | . . . 1 . . . 2 . 1 4 Weapon 8 | . . 1 . . . . . 2 2 3 Highest Loss Streak 9 | . 1 1 1 1 . . 1 2 3 9 Average Slot Usage (%) 94 | . 82 99 97 100 100 100 92 97 92 66 Engine 11 | . 11 21 15 7 7 7 11 13 12 8 Core 2 | . . . 2 6 7 7 1 . . . Treads 16 | . . . 23 29 30 30 20 . . . Leg 4 | . 28 22 2 . . . . . . . Hover 6 | . . . . . . . 4 26 26 21 Device 15 | . . 6 7 14 15 15 24 26 23 15 Storage 7 | . 14 11 9 8 7 7 6 6 6 7 Processor 1 | . . 11 4 . . . . . . . Protection 3 | . . 4 3 6 7 7 1 . . . Energy Gun 2 | . . 1 7 . . . . 5 1 . Energy Cannon 2 | . . . . . 2 7 5 6 3 . Ballistic Gun 8 | . 28 . 8 7 7 7 1 10 13 1 Ballistic Cannon 7 | . . 19 10 15 12 7 5 . . . Naked Turns . | . . . . . . . . . . . Heaviest Build 91 | 10 38 51 56 91 62 62 71 77 72 60 Greatest Support 105 | 20 20 26 66 89 105 105 105 77 77 77 Greatest Overweight (x) 12 | . 1 2 3 8 . . 1 . . 12 Average Overweight (x) . | . . 1 . . . . . . . . Largest Inventory Capacity 20 | 6 12 12 12 20 12 12 12 12 12 12 Average Capacity 11 | 5 10 12 12 13 12 12 12 12 12 12 Most Carried 17 | 4 12 12 12 17 12 9 12 12 12 11 Average Carried 9 | 2 3 10 10 10 11 9 8 11 11 8 Final Capacity 12 | 6 12 12 12 12 12 12 12 12 12 12 Final Carried 12 | 4 12 12 12 12 9 9 11 12 11 11 Class Distribution -------------------- 40% | Scavenger-Tank 22% | Scavenger-Mutant 13% | Scavenger-Gunner 13% | Mutant 4% | Hacker-Mutant 4% | Machinist-Mutant Dominant Class ---------------- Mutant | -10/Materials Mutant | -9/Materials Scavenger-Mutant | -8/Materials Scavenger-Tank | -7/Factory Scavenger-Tank | -7/Lower Caves Scavenger-Tank | -7/Lower Caves Scavenger-Mutant | -6/Factory Scavenger-Gunner | -6/Lower Caves Scavenger-Gunner | -6/Lower Caves Hacker-Mutant | -5/Factory Resources | -11 -10 -9 -8 -7 -7 -7 -6 -6 -6 -5 ----------- Run | Scr Mat Mat Mat Fac Low Low Fac Low Low Fac Matter Collected 2420 | 78 202 251 573 167 272 28 285 228 245 91 Remotely . | . . . . . . . . . . . Salvage Created 2443 | . 242 406 614 202 39 . 435 291 161 53 Parts 107 | . 15 21 32 6 2 . 18 4 8 1 Haulers Intercepted 5 | . 2 1 1 . . . 1 . . . Recyclers Shooed 7 | . 1 . 1 1 . . 2 . . 2 Parts Field Recycled . | . . . . . . . . . . . Retrieved Matter . | . . . . . . . . . . . Parts Self-Destructed 31 | . . . . . 2 4 . 6 19 . Prevented . | . . . . . . . . . . . Kills | -11 -10 -9 -8 -7 -7 -7 -6 -6 -6 -5 ------- Run | Scr Mat Mat Mat Fac Low Low Fac Low Low Fac Combat Hostiles Destroyed 41 | . 2 7 8 5 1 . 7 6 4 1 Guns 15 | . 2 . 3 3 . . . 4 2 1 Cannons 26 | . . 7 5 2 1 . 7 2 2 . Classes Destroyed 13 | . 4 3 1 . 1 . 1 2 1 . Worker 7 | . 1 2 3 . . . 1 . . . Tunneler 1 | . . . . . . . 1 . . . Hauler 5 | . 2 1 1 . . . 1 . . . Recycler 3 | . . 1 2 . . . . . . . Watcher 6 | . 2 . 2 . . . 2 . . . Swarmer 6 | . . . 1 2 . . 2 . 1 . Grunt 19 | . 2 5 4 1 . . 3 3 1 . Brawler 3 | . . 1 . . . . 1 1 . . Duelist 3 | . . . . . . . . 1 1 1 Protector 1 | . . . . . . . . . 1 . Sentry 7 | . . 1 3 2 . . 1 . . . Hunter 1 | . . . . . . . . 1 . . Programmer 1 | . . . . . 1 . . . . . Best Kill Streak 6 | . 2 6 2 3 1 . 4 2 1 1 Combat Bots Only 5 | . 2 5 2 3 1 . 2 2 1 1 Max Kills in Single Turn 2 | . 1 2 1 1 1 . 1 1 1 1 Gunslinging . | . . . . . . . . . . . Exploded . | . . . . . . . . . . . Melee . | . . . . . . . . . . . Uniques/NPCs Destroyed . | . . . . . . . . . . . Combat | -11 -10 -9 -8 -7 -7 -7 -6 -6 -6 -5 -------- Run | Scr Mat Mat Mat Fac Low Low Fac Low Low Fac Damage Taken 3718 | . 213 9 305 298 12 57 810 555 362 1097 Core 1009 | . 26 9 29 45 . 11 284 109 43 453 Absorbed by Shields 255 | . . . . 183 . 54 18 . . . Core Remaining (%) 83 | 100 89 97 90 . . 89 . . 33 . Volleys Fired 189 | . 24 18 40 17 2 4 28 24 22 10 Largest 4 | . 2 2 3 3 3 3 4 4 4 2 Hottest 308 | . 40 95 115 101 142 142 207 308 222 53 Shots Fired 467 | . 48 36 98 51 6 12 68 76 60 12 Gun 239 | . 48 1 50 17 2 4 19 42 44 12 Cannon 226 | . . 35 48 34 4 8 47 34 16 . Launcher 2 | . . . . . . . 2 . . . Special . | . . . . . . . . . . . Kinetic 350 | . 48 35 87 51 4 8 29 33 43 12 Thermal 115 | . . 1 11 . 2 4 37 43 17 . Explosive . | . . . . . . . . . . . Electromagnetic 2 | . . . . . . . 2 . . . Robot Hit Streak 35 | . 10 11 18 12 9 18 35 9 11 10 Robot Miss Streak 5 | . 2 2 2 1 . 1 3 5 5 1 Penetration Max . | . . . . . . . . . . . Secondary Targets . | . . . . . . . . . . . Shots Hit Robots 346 | . 38 26 72 31 4 11 58 50 43 13 Core Hits 133 | . 14 13 31 10 2 1 22 15 19 6 Critical Hits 4 | . 1 . . . . . 1 . 2 . Critical Kills 1 | . . . . . . . . . 1 . Critical Parts Destroyed 3 | . 1 . . . . . 1 . 1 . Melee Attacks 2 | . . . . . . . . . . 2 Impact 2 | . . . . . . . . . . 2 Slashing . | . . . . . . . . . . . Piercing . | . . . . . . . . . . . Sneak Attacks . | . . . . . . . . . . . Combat Hostiles . | . . . . . . . . . . . Follow-up Attacks . | . . . . . . . . . . . Damage Inflicted 6322 | . 449 535 1105 647 99 215 1383 965 608 316 Guns 2428 | . 438 18 414 183 15 60 258 382 367 293 Cannons 3751 | . . 517 643 464 84 155 1064 583 241 . Explosions 60 | . . . . . . . 60 . . . Melee 20 | . . . . . . . . . . 20 Ramming 63 | . 11 . 48 . . . 1 . . 3 Kinetic 3953 | . 438 517 917 647 38 136 345 255 367 293 Thermal 2226 | . . 18 140 . 61 79 977 710 241 . Explosive . | . . . . . . . . . . . Electromagnetic 60 | . . . . . . . 60 . . . Impact 20 | . . . . . . . . . . 20 Slashing . | . . . . . . . . . . . Piercing . | . . . . . . . . . . . Highest Corruption 3 | . . . 3 . . . 1 1 1 2 Average Corruption 1 | . . . 3 . . . 1 1 1 2 Corruption Purged . | . . . . . . . . . . . Effects 12 | . . . 4 . . . 4 4 . . Message Errors 6 | . . . 1 . . . 1 4 . . Energy Discharges 1 | . . . . . . . 1 . . . Data Loss (minor) 3 | . . . 2 . . . 1 . . . Targeting Errors 2 | . . . 1 . . . 1 . . . Overload Shots . | . . . . . . . . . . . Overflow Damage 19 | . . . 1 12 . . . 6 . . Projectiles 19 | . . . 1 12 . . . 6 . . Explosions . | . . . . . . . . . . . Melee . | . . . . . . . . . . . Knockbacks 18 | . . 2 8 6 1 . 1 . . . Impact . | . . . . . . . . . . . Kinetic 18 | . . 2 8 6 1 . 1 . . . Secondary . | . . . . . . . . . . . Self-Inflicted Damage 21 | . 5 . . . . . 15 . . 1 Shots 1 | . . . . . . . 1 . . . Rammed 9 | . 1 . 6 . . . 1 . . 1 Targets Rammed 10 | . 1 . 7 . . . 1 . . 1 Kicked . | . . . . . . . . . . . Crushed 1 | . . . 1 . . . . . . . Highest Temperature 677 | . 58 120 60 42 156 203 677 198 347 10 Average Temperature 94 | . 26 41 14 18 80 94 127 106 154 5 Received Heat Transfer 1134 | . 150 6 108 92 . 10 174 99 123 372 Effects 13 | . . . . . . . 10 . 3 . Shutdowns 3 | . . . . . . . 3 . . . Energy Bleed 2 | . . . . . . . 1 . 1 . Interference 2 | . . . . . . . 2 . . . Matter Decay 2 | . . . . . . . 1 . 1 . Damage (minor) 2 | . . . . . . . 1 . 1 . Damage (core) 2 | . . . . . . . 2 . . . Siege Activations . | . . . . . . . . . . . Robots Corrupted . | . . . . . . . . . . . Combat Hostiles . | . . . . . . . . . . . Parts Fried 1 | . . . . 1 . . . . . . Impact Corruptions . | . . . . . . . . . . . Robots Melted 1 | . . . . . . . 1 . . . Combat Hostiles . | . . . . . . . . . . . Parts Melted 3 | . . . . . . . 2 1 . . Heat Transferred 3378 | . . 37 296 . 100 150 1607 976 212 . Parts Sabotaged . | . . . . . . . . . . . Parts Stolen . | . . . . . . . . . . . Parts Stripped . | . . . . . . . . . . . Power Chain Reactions . | . . . . . . . . . . . Missiles Intercepted . | . . . . . . . . . . . Alert | -11 -10 -9 -8 -7 -7 -7 -6 -6 -6 -5 ------- Run | Scr Mat Mat Mat Fac Low Low Fac Low Low Fac Peak Influence 564 | . 117 327 502 564 . . 275 . . 479 Initial 162 | . . 12 117 162 . . 32 . . 147 Average 232 | . 35 209 351 313 . . 149 . . 280 Maximum Alert Level 2 | . . 1 2 2 . . 1 . . 2 Low Security (%) 48 | 100 100 16 9 47 . . 73 . . 12 Level 1 32 | . . 83 50 17 . . 26 . . 71 Level 2 18 | . . . 39 34 . . . . . 15 Level 3 . | . . . . . . . . . . . Level 4 . | . . . . . . . . . . . Level 5 . | . . . . . . . . . . . High Security . | . . . . . . . . . . . Max Security . | . . . . . . . . . . . Squads Dispatched 17 | . . 2 3 4 . . 3 . 1 4 Investigation 4 | . . . 2 1 . . . . . 1 Extermination 5 | . . . . 3 . . 1 . . 1 Reinforcement 6 | . . 2 1 . . . 2 . . 1 Assault 1 | . . . . . . . . . 1 . Garrison 1 | . . . . . . . . . . 1 Intercept . | . . . . . . . . . . . Construction Impeded 2 | . . . . . . . 1 . . 1 Haulers Reinforced 1 | . . . . . . . 1 . . . Stealth | -11 -10 -9 -8 -7 -7 -7 -6 -6 -6 -5 --------- Run | Scr Mat Mat Mat Fac Low Low Fac Low Low Fac Distress Signals 7 | . . . 3 1 . . 2 . . 1 Communications Jammed . | . . . . . . . . . . . Distress Signals . | . . . . . . . . . . . Times Spotted 129 | . 8 8 29 15 1 2 27 13 13 13 Peak Tracking Total 12 | . 4 4 4 5 1 1 5 4 12 6 Tactical Retreats 3 | . . . . . . . 1 . 2 . Traps | -11 -10 -9 -8 -7 -7 -7 -6 -6 -6 -5 ------- Run | Scr Mat Mat Mat Fac Low Low Fac Low Low Fac Traps Triggered 3 | . . . 1 . . . 2 . . . Indirectly . | . . . . . . . . . . . Trap Hack Attempts . | . . . . . . . . . . . Triggered . | . . . . . . . . . . . Disarmed . | . . . . . . . . . . . Reprogrammed . | . . . . . . . . . . . Reused . | . . . . . . . . . . . Traps Extracted . | . . . . . . . . . . . Installed . | . . . . . . . . . . . Triggered . | . . . . . . . . . . . Machines | -11 -10 -9 -8 -7 -7 -7 -6 -6 -6 -5 ---------- Run | Scr Mat Mat Mat Fac Low Low Fac Low Low Fac Machines Disabled 15 | . . 1 1 . . . 4 . 1 8 Max in Single Turn 1 | . . 1 1 . . . . . . . Machines Sabotaged . | . . . . . . . . . . . Garrisons Compromised . | . . . . . . . . . . . Overloaded Fab Kills . | . . . . . . . . . . . Fab Network Shutdowns 1 | . . . . 1 . . . . . . Hacking | -11 -10 -9 -8 -7 -7 -7 -6 -6 -6 -5 --------- Run | Scr Mat Mat Mat Fac Low Low Fac Low Low Fac Machines Accessed 9 | . . . 2 2 . . 2 2 1 . Terminals 2 | . . . 1 . . . . 1 . . Fabricators 3 | . . . . 2 . . 1 . . . Repair Stations 1 | . . . . . . . 1 . . . Recycling Units . | . . . . . . . . . . . Scanalyzers . | . . . . . . . . . . . Garrison Access 1 | . . . 1 . . . . . . . Total Hacks 21 | . . . 6 7 . . 5 2 1 . Successful 13 | . . . 2 5 . . 3 2 1 . Failed 8 | . . . 4 2 . . 2 . . . Catastrophic . | . . . . . . . . . . . Database Lockouts . | . . . . . . . . . . . Manual . | . . . . . . . . . . . Terminals 4 | . . . 3 . . . . 1 . . Fabricators 10 | . . . . 7 . . 3 . . . Repair Stations 2 | . . . . . . . 2 . . . Recycling Units . | . . . . . . . . . . . Scanalyzers . | . . . . . . . . . . . Garrison Access 3 | . . . 3 . . . . . . . Terminal Hacks 5 | . . . 2 . . . . 2 1 . Record 1 | . . . . . . . . 1 . . Open Door 2 | . . . . . . . . 1 1 . Branch Access Points 1 | . . . 1 . . . . . . . Zone Layout 1 | . . . 1 . . . . . . . Fabricator Hacks 8 | . . . . 5 . . 3 . . . Network Status 1 | . . . . 1 . . . . . . Build 7 | . . . . 4 . . 3 . . . Repair Station Hacks . | . . . . . . . . . . . Recycling Unit Hacks . | . . . . . . . . . . . Scanalyzer . | . . . . . . . . . . . Garrison Access Hacks . | . . . . . . . . . . . Unauthorized Hacks . | . . . . . . . . . . . Terminals . | . . . . . . . . . . . Fabricators . | . . . . . . . . . . . Repair Stations . | . . . . . . . . . . . Recycling Units . | . . . . . . . . . . . Scanalyzers . | . . . . . . . . . . . Garrison Access . | . . . . . . . . . . . Data Cores Recovered 2 | . . . 1 1 . . . . . . Used . | . . . . . . . . . . . Hacking Detections 5 | . . . 2 2 . . 1 . . . Full Trace Events 2 | . . . 1 1 . . . . . . Feedback Events . | . . . . . . . . . . . Feedback Blocked . | . . . . . . . . . . . Robot Schematics Acquired . | . . . . . . . . . . . Robots Built 9 | . . . . 9 . . . . . . Matter 690 | . . . . 690 . . . . . . Time 366 | . . . . 366 . . . . . . Total Robot Build Rating 30 | . . . . 30 . . . . . . Part Schematics Acquired . | . . . . . . . . . . . Parts Built 6 | . . . . . . . 6 . . . Matter 702 | . . . . . . . 702 . . . Time 351 | . . . . . . . 351 . . . Total Part Build Rating 42 | . . . . . . . 42 . . . Parts Repaired . | . . . . . . . . . . . Time . | . . . . . . . . . . . Parts Recycled . | . . . . . . . . . . . Recycled Matter . | . . . . . . . . . . . Retrieved Matter . | . . . . . . . . . . . Retrieved Components . | . . . . . . . . . . . Parts Scanalyzed . | . . . . . . . . . . . Part Schematics Acquired . | . . . . . . . . . . . Parts Damaged . | . . . . . . . . . . . Bothacking | -11 -10 -9 -8 -7 -7 -7 -6 -6 -6 -5 ------------ Run | Scr Mat Mat Mat Fac Low Low Fac Low Low Fac Used RIF Installer . | . . . . . . . . . . . Robots Hacked . | . . . . . . . . . . . Non-combat . | . . . . . . . . . . . Combat . | . . . . . . . . . . . Robot Hacks Applied . | . . . . . . . . . . . Relay Couplers Released 3 | . . . . . . . 3 . . . Programmers 3 | . . . . . . . 3 . . . Robots Rewired . | . . . . . . . . . . . Allies Hacked . | . . . . . . . . . . . Hacks Repelled . | . . . . . . . . . . . Allies | -11 -10 -9 -8 -7 -7 -7 -6 -6 -6 -5 -------- Run | Scr Mat Mat Mat Fac Low Low Fac Low Low Fac Total Allies 10 | . 1 . . 9 . . . . . . Largest Group 7 | . 1 1 1 7 6 6 4 1 1 1 Highest-Rated Group 178 | . 61 68 74 178 162 162 136 101 101 105 Highest-Rated Ally 105 | . 61 68 74 82 82 82 91 101 101 105 Total Orders . | . . . . . . . . . . . Ally Attacks 226 | . 10 9 29 50 . 11 54 20 18 25 Total Damage 10054 | . 270 405 1596 1277 . 120 2737 758 761 2130 Kills 86 | . 3 5 21 11 . 2 17 7 8 12 Allies Corrupted . | . . . . . . . . . . . Allies Melted 1 | . . . . 1 . . . . . . Intel | -11 -10 -9 -8 -7 -7 -7 -6 -6 -6 -5 ------- Run | Scr Mat Mat Mat Fac Low Low Fac Low Low Fac Robot Analysis Total . | . . . . . . . . . . . Derelict Logs Recovered 2 | . . . . . 1 . . 1 . . Drone Launches . | . . . . . . . . . . . Drone Recoveries . | . . . . . . . . . . . Exploration | -11 -10 -9 -8 -7 -7 -7 -6 -6 -6 -5 ------------- Run | Scr Mat Mat Mat Fac Low Low Fac Low Low Fac Turns Passed 7166 | 53 642 334 1130 1309 716 101 1359 888 305 329 Spaces Moved 4098 | 35 359 152 507 463 405 51 513 1074 271 268 Core 10 | 6 . . . . . . . . . 4 Treads 1829 | . . . 452 462 405 51 459 . . . Legs 595 | 29 359 152 55 . . . . . . . Wheels . | . . . . . . . . . . . Hover 1663 | . . . . . . . 54 1074 271 264 Flight 1 | . . . . 1 . . . . . . Fastest Speed 50 | 50 120 150 150 160 160 160 58 58 58 58 Average Speed 117 | 108 140 158 159 162 160 160 149 58 58 66 Slowest Speed 740 | 120 150 180 210 740 160 160 160 58 58 650 Overloaded Moves . | . . . . . . . . . . . Propulsion Burnouts . | . . . . . . . . . . . Robots Hopped . | . . . . . . . . . . . Cave-ins Triggered . | . . . . . . . . . . . Exploration Rate (%) 33 | 3 49 17 45 14 72 11 15 96 38 9 Regions Visited 10 Branch Regions 4 Pre-discovered Areas . | . . . . . . . . . . . Known Exits Taken . | . . . . . . . . . . . Unknown Exits Taken 10 | 1 1 1 1 1 1 1 1 1 1 . Scrap Searched 8 | . . . . . 3 1 . 3 1 . Spaces Dug . | . . . . . . . . . . . Terrain Destroyed 3 | . . 1 2 . . . . . . . Melee . | . . . . . . . . . . . Projectile 3 | . . 1 2 . . . . . . . AOE . | . . . . . . . . . . . Terrain Rammed . | . . . . . . . . . . . Walls Destroyed . | . . . . . . . . . . . Machines Disabled . | . . . . . . . . . . . Actions | -11 -10 -9 -8 -7 -7 -7 -6 -6 -6 -5 --------- Run | Scr Mat Mat Mat Fac Low Low Fac Low Low Fac Total 6102 | 50 456 208 749 983 470 62 1056 1285 373 410 Wait 1521 | . 52 8 120 464 52 8 465 170 75 107 Move 4088 | 34 358 151 506 462 404 50 512 1073 270 268 Hop . | . . . . . . . . . . . Pick Up 108 | 10 14 10 26 12 1 . 19 7 1 8 Fast Attach 3 | . . 1 . . . . 1 . 1 . Attach 41 | 6 1 3 5 5 . . 8 4 2 7 Detach 2 | . . . . 1 . . 1 . . . Swap 60 | . 1 9 20 12 5 . 7 3 1 2 Drop 78 | . 5 8 25 10 6 . 14 4 1 5 Fire 189 | . 24 18 40 17 2 4 28 24 22 10 Melee 2 | . . . . . . . . . . 2 Ram 1 | . . . . . . . . . . 1 Kick 1 | . 1 . . . . . . . . . Crush 8 | . . . 7 . . . 1 . . . Escape Stasis . | . . . . . . . . . . . Rewire . | . . . . . . . . . . . Trap . | . . . . . . . . . . . Miscellaneous . | . . . . . . . . . . . Route ------- -11/Scrapyard -10/Materials -9/Materials (discovered 2 exits: *Mat / [*Min]) -8/Materials -7/Factory (discovered 2 exits: *Fac / [*Low]) -7/Lower Caves (discovered 2 exits: [*Low] / [*Zio]) -7/Lower Caves -6/Factory -6/Lower Caves -6/Lower Caves -5/Factory (discovered 1 exit: Fac) History --------- Turn | Location | Event 2 | -11/Scrapyard | Met Revision 17 21 | -11/Scrapyard | Discovered new exit (range 15) 54 | -11/Scrapyard | Entered Materials 300 | -10/Materials | Build established: Mutant 484 | -10/Materials | Discovered new exit (range 16) 696 | -10/Materials | Entered another Materials area 696 | -9/Materials | Accompanied by 1 ally 696 | -9/Materials | Evolved 2 slots: Power x1, Utility x1 783 | -9/Materials | Discovered new exit (range 16) 967 | -9/Materials | Discovered new exit (range 11) 1030 | -9/Materials | Entered another Materials area 1030 | -8/Materials | Accompanied by 1 ally 1030 | -8/Materials | Evolved 2 slots: Propulsion x1, Weapon x1 1441 | -8/Materials | Build established: Scavenger-Mutant 1962 | -8/Materials | Build established: Scavenger-Tank 2104 | -8/Materials | Discovered new exit (range 9) 2160 | -8/Materials | Entered Factory 2160 | -7/Factory | Accompanied by 1 ally 2160 | -7/Factory | Evolved 2 slots: Propulsion x1, Utility x1 2372 | -7/Factory | Fabricated B-48 Gladiator (x3) 2703 | -7/Factory | Fabricated G-47 Trooper (x3) 2819 | -7/Factory | Fabricated G-47 Trooper (x3) 2857 | -7/Factory | Local fabrication network quarantined 3070 | -7/Factory | Discovered new exit (range 15) 3362 | -7/Factory | Discovered new exit (range 15) 3469 | -7/Factory | Entered Lower Caves 3469 | -7/Lower Caves | Accompanied by 6 allies 3482 | -7/Lower Caves | Encountered a Warlord checkpoint 3619 | -7/Lower Caves | A Derelict revealed a hidden shortcut to a safe place 3703 | -7/Lower Caves | Learned Factory stockpile data 4158 | -7/Lower Caves | Discovered new exit (range 5) 4185 | -7/Lower Caves | Entered another Lower Caves area 4185 | -7/Lower Caves | Accompanied by 6 allies 4208 | -7/Lower Caves | Discovered new exit (range 4) 4221 | -7/Lower Caves | Attracted the attention of an 0b10 checkpoint 4286 | -7/Lower Caves | Entered Factory 4286 | -6/Factory | Accompanied by 4 allies 4286 | -6/Factory | Evolved 2 slots: Utility x1, Weapon x1 4889 | -6/Factory | Build established: Scavenger-Mutant 5321 | -6/Factory | Fabricated Imp. Gyrokinetic Inverter (x2) 5447 | -6/Factory | Fabricated Imp. Gyrokinetic Inverter (x2) 5574 | -6/Factory | Fabricated Imp. Gyrokinetic Inverter (x2) 5588 | -6/Factory | Discovered new exit (range 10) 5645 | -6/Factory | Entered Lower Caves 5645 | -6/Lower Caves | Accompanied by 1 ally 5718 | -6/Lower Caves | Learned location of 1 exit from Factory 5757 | -6/Lower Caves | Build established: Machinist-Mutant 5786 | -6/Lower Caves | Core integrity fell below 50% 6098 | -6/Lower Caves | Build established: Scavenger-Gunner 6395 | -6/Lower Caves | Discovered new exit (range 10) 6533 | -6/Lower Caves | Entered another Lower Caves area 6533 | -6/Lower Caves | Accompanied by 1 ally 6596 | -6/Lower Caves | Attracted the attention of an 0b10 outpost 6752 | -6/Lower Caves | Lost 3 parts (1p1u1w) 6775 | -6/Lower Caves | Discovered new exit (range 6) 6838 | -6/Lower Caves | Entered Factory 6838 | -5/Factory | Accompanied by 1 ally 6838 | -5/Factory | Evolved 2 slots: Utility x2 6839 | -5/Factory | Identified exit to Factory 6863 | -5/Factory | Garrison activated, responded to threat 7137 | -5/Factory | Build established: Hacker-Mutant 7150 | -5/Factory | Core integrity fell below 50% 7157 | -5/Factory | Core integrity fell below 20% 7167 | -5/Factory | Destroyed by G-50 Soldier with Heavy Laser Last Messages --------------- 07150_ U-05 Engineer lays Concrete. 07150_ Player 2 attaches Microactuators. 07150_ Slug penetrates Player 2. 07151_ U-05 Engineer lays Concrete. 07151_ Player 2 attaches Imp. Core Shielding. 07152_ U-05 Engineer lays Concrete. 07153_ U-05 Engineer builds a Wall. 07154_ Slug penetrates Player 2. 07155_ R-10 Processor collects Faulty Tri-rail Accelerator. 07156_ Slug penetrates Player 2. 07158_ U-05 Engineer lays Concrete. 07159_ Slug penetrates Player 2. 07160_ U-05 Engineer builds a Wall. 07162_ Weapon Cycler destroyed. 07163_ Slug penetrates Player 2. 07165_ U-05 Engineer lays Concrete. 07166_ R-10 Processor collects Adv. Heat Sink. Player 2: "Leave the Flexi-carbon Leg for me, please." 07166_ U-05 Engineer lays Concrete. 07167_ U-05 Engineer builds a Wall. Map ----- +----------------------------------------------------+ | ????????# """" """" # #????????? | | ????????# """" """" # +????????? | | ????????# """" """" # #????????? | | ????????# """" """" # #????????? | | ????????# """" """" + #?????????? | | ????????# # #?????????? | | ????????###########+## #?????????? | | ??????????????????# #?????????? | | ??????????????????# #?????????? | | ??????????????????# #?????????? | | ??????????????????# #?????????? | | ??????????????????# #?????????? | | ??????????????????# #?????????? | | ??????????????????# ##########? | | ??????????#########+# # #? | | ??????????# """ """ # # """ #? | | ??????????# """ """ # # """ #? | | ??????????# """ """ + " """ #? | | ??????????# ; " #? | | ??????????# #; """ #? | | ??????????# # """ #? | | ??????????# % """ #? | | ??????????# w !! #? | | ??????????######### h ;#########? | | ??????????????????# #????????? | | ??????????????????# @ #????????? | | ??????????????????# g ##???????? | | ?????????########## ; @t # #???????? | | ?????????# ;;;% [ u# #???????? | | ?????????#"""" ] ; !%[ # #???????? | | ?????????#"""" # %= ####???????? | | ?????????#"""" # R #???????? | | ?????????#"""" + +???????? | | ?????????#""" ; #???????? | | ?????????#"""" ! ; #???????? | | ?????????#"""" ; #???????? | | ?????????# ! ; +???????? | | ?????????#########; # ??????? | | ?????????????????## # ??????? | | ??????????????????# #???????? | | ??????????????????# #???????? | | ??????????????????# ?????????? | | ??????????????????# ????????????? | | ?????????????????? ??????????????? | | ??????????????????? ????????????????? | | ???????????????????????????????????????? | | ???????????????????????????????????????? | | ???????????????????????????????????????? | | ???????????????????????????????????????? | | ???????????????????????????????????????? | +----------------------------------------------------+ Best States ------------- Heat Dissipation 67 Coolant Potential 65 Energy Generation 31 Energy Capacity 490 Matter Stores 300 Matter Capacity 300 Sight Range 16 Terrain Scan Density 10 Additional Mass Support 9 Resistance: KI 20 Resistance: TH 20 Resistance: EX 20 Resistance: EM 20 Resistance: I 20 Resistance: S 20 Resistance: P 20 Core Shielding 20 Weapon Cycling 15 Evasion (%) 53 Targeting Accuracy 6 Recoil Reduction 4 Offensive Hacking 21 Item Schematics ----------------- None Robot Schematics ------------------ None Fabricated ------------ B-48 Gladiator | x3 | -7/Factory | Preloaded G-47 Trooper | x3 | -7/Factory | Preloaded G-47 Trooper | x3 | -7/Factory | Preloaded Imp. Gyrokinetic Inverter | x2 | -6/Factory | Preloaded Imp. Gyrokinetic Inverter | x2 | -6/Factory | Preloaded Imp. Gyrokinetic Inverter | x2 | -6/Factory | Preloaded Alien Tech Used ----------------- None Achievements -------------- Leap Before You Look My Command Is Your Wish Challenges ------------ None Player 2 | -11 -10 -9 -8 -7 -7 -7 -6 -6 -6 -5 ---------- Run | Scr Mat Mat Mat Fac Low Low Fac Low Low Fac Slots Evolved 10 | . 2 2 2 . . 2 . . 2 . Power 1 | . . . 1 . . . . . . . Propulsion 3 | . . 2 . . . 1 . . . . Utility 4 | . . . 1 . . 1 . . 2 . Weapon 2 | . 2 . . . . . . . . . Parts Attached 62 | . 10 7 8 7 . . 6 5 1 18 Parts Lost 24 | . . . . . . . . 1 2 21 Damage Taken 4132 | . 62 59 296 46 . . 507 478 279 2405 Core 715 | . . . 24 16 . . 97 31 . 547 Player 2/Cogmind (%) 41 | . . . 45 26 . . 25 22 . 54 Absorbed by Shields 197 | . . . . . . . . . . 197 Damage Inflicted 9378 | . 270 405 1596 849 . . 2609 758 761 2130 Player 2/Cogmind (%) 59 | . 37 43 59 56 . . 65 43 55 87 Combat Hostiles Destroyed 62 | . 2 2 12 9 . . 14 6 8 9 Player 2/Cogmind (%) 60 | . 50 22 60 64 . . 66 50 66 90 Game ------ Seed ThiefTerrabombProtection Manual? 0 Play Time 02:00:03 Cumulative 22.7 hours Start 2022.02.20 @ 05:07:16 End 2022.02.20 @ 23:51:58 Sessions 2 Manual Loads 0 Difficulty Adventurer Special Mode AFD2020/Player2 Game No. 31 Rogue 5 Adventurer 26 Explorer 0 Win Type - Total 0 Types 0/0/0/0/0/0/0/0/0 Lore% 19 Gallery% 21 Achievement% 17 Wizard Run 0 Options --------- ASCII 0 Keyboard 0 Movement Mouse Keybinds 0 Fullscreen 1 Font 16/Proggy Map View 76x50 Tactical HUD 1 Map Filters NONE Filters NONE Steam 1 RUN: b98187f6-0f86-4617-b568-defbf6a601d9